bitfinex/quotes_BTCUSD_20250917
["timestamp","ask_amount","ask_price","bid_price","bid_amount"]
[1758138954710,1.72365724,115820.0,115810.0,0.06835691]
[1758138954898,1.72365724,115820.0,115810.0,0.07045691]
[1758138955070,1.72365724,115820.0,115810.0,0.00014118]
[1758138955517,1.72365724,115820.0,115810.0,0.00324118]
[1758138955698,1.69944724,115820.0,115810.0,0.00324118]
[1758138955904,1.69748724,115820.0,115810.0,0.00324118]
[1758138956972,1.70797795,115820.0,115810.0,0.00114118]
[1758138957112,1.73218795,115820.0,115810.0,0.00014118]
[1758138957308,1.73220846,115820.0,115810.0,0.00014118]
[1758138957525,1.73320846,115820.0,115810.0,0.00224118]
[1758138957730,1.70899846,115820.0,115810.0,0.00224118]
[1758138957932,1.70703846,115820.0,115810.0,0.00224118]
[1758138958143,1.69851396,115820.0,115810.0,0.00224118]
[1758138958707,1.69851396,115820.0,115810.0,0.17732783]
[1758138958923,1.0281832,115820.0,115810.0,0.17732783]
[1758138959139,1.69831396,115820.0,115810.0,0.17732783]
[1758138959811,1.52563222,115820.0,115810.0,0.17487783]
[1758138960028,1.52563222,115820.0,115810.0,0.17726783]
[1758138960029,1.49544032,115820.0,115810.0,0.17726783]
[1758138960757,0.10842956,115820.0,115810.0,0.17726783]
[1758138960968,0.02315989,115820.0,115810.0,0.17726783]
[1758138961189,0.02215989,115820.0,115810.0,0.20320919]
[1758138961405,0.02215989,115820.0,115810.0,0.21957751]
[1758138962053,0.02215989,115820.0,115810.0,0.28343152]
[1758138962270,0.02215989,115820.0,115810.0,0.2680632]
[1758138962701,0.02216478,115820.0,115810.0,0.2680632]
[1758138965098,0.69249554,115820.0,115810.0,0.2680632]
[1758138965381,0.69249554,115820.0,115810.0,0.20420919]
[1758138966298,0.77776521,115820.0,115810.0,0.20420919]
[1758138966760,0.95044695,115820.0,115810.0,0.20181919]
[1758138966983,0.95044695,115820.0,115810.0,0.17587783]
[1758138967203,0.95044695,115820.0,115810.0,0.17826783]
[1758138967424,0.95044695,115820.0,115810.0,0.00318118]
[1758138967639,0.95254695,115820.0,115810.0,0.00014118]
[1758138967867,0.98094695,115820.0,115810.0,0.00014118]
[1758138968095,1.35009885,115820.0,115810.0,0.00014118]
[1758138968559,1.35109885,115820.0,115810.0,0.00014118]
[1758138969001,1.34801885,115820.0,115810.0,0.00014118]
[1758138969885,1.34806314,115820.0,115810.0,0.00014118]
[1758138970102,1.32374314,115820.0,115810.0,0.00014118]
[1758138970318,1.32374343,115820.0,115810.0,0.00014118]
[1758138970766,1.34806343,115820.0,115810.0,0.00014118]
[1758138971310,1.34806343,115820.0,115810.0,0.00214118]
[1758138971492,1.35114343,115820.0,115810.0,0.00014118]
[1758138973700,1.35975597,115820.0,115810.0,0.00014118]
[1758138974575,1.34806343,115820.0,115810.0,0.00014118]
[1758138974789,0.65131267,115820.0,115810.0,0.00214118]
[1758138975016,1.32374343,115820.0,115810.0,0.00214118]
[1758138975241,1.32374343,115820.0,115810.0,0.00014118]
[1758138975695,1.32374343,115820.0,115810.0,0.00214118]
[1758138976361,1.32374343,115820.0,115810.0,0.00014118]
[1758138976540,1.35114343,115820.0,115810.0,0.00014118]
[1758138977108,1.32374343,115820.0,115810.0,0.00214118]
[1758138977313,0.65131267,115820.0,115810.0,0.17483783]
[1758138977517,1.60508343,115820.0,115810.0,0.00214118]
[1758138977720,1.67572836,115820.0,115810.0,0.00214118]
[1758138977902,1.60598343,115820.0,115810.0,0.00214118]
[1758138978321,1.60808343,115820.0,115810.0,0.00214118]
[1758138978531,1.60804343,115820.0,115810.0,0.00214118]
[1758138978763,1.60804343,115820.0,115810.0,0.00014118]
[1758138978969,1.63236343,115820.0,115810.0,0.00014118]
[1758138979392,1.63544343,115820.0,115810.0,0.00014118]
[1758138979577,1.35204343,115820.0,115810.0,0.00014118]
[1758138979778,1.63536343,115820.0,115810.0,0.00014118]
[1758138982704,1.61315407,115820.0,115810.0,0.00014118]
[1758138982915,1.63538666,115820.0,115810.0,0.00014118]
[1758138985875,1.72870666,115820.0,115810.0,0.00014118]
[1758138986436,1.7125375,115820.0,115810.0,0.00014118]
[1758138987067,1.72870512,115820.0,115810.0,0.00014118]
[1758138987472,1.71253708,115820.0,115810.0,0.00014118]
[1758138987700,1.72870467,115820.0,115810.0,0.00014118]
[1758138988256,1.05837391,115820.0,115810.0,0.00014118]
[1758138988437,1.71253708,115820.0,115810.0,0.00014118]
[1758138990859,1.71253625,115820.0,115810.0,0.00014118]
[1758138991989,1.72870534,115820.0,115810.0,0.00014118]
[1758138993210,1.72870699,115820.0,115810.0,0.00014118]
[1758138993842,2.13642345,115820.0,115810.0,0.00014118]
[1758138994620,2.11319053,115820.0,115810.0,0.00014118]
[1758138994832,2.13543173,115820.0,115810.0,0.00014118]
[1758138995674,2.13743173,115820.0,115810.0,0.00014118]
[1758138996778,2.20260203,115820.0,115810.0,0.00014118]
[1758139001985,3.60864295,115820.0,115810.0,0.00014118]
[1758139002969,3.98204295,115820.0,115810.0,0.00014118]
[1758139007575,3.97878665,115820.0,115810.0,0.00014118]
[1758139008497,3.69546665,115820.0,115810.0,0.00014118]
[1758139008710,3.97738665,115820.0,115810.0,0.00014118]
[1758139009550,3.97726665,115820.0,115810.0,0.00014118]
[1758139010715,3.69546665,115820.0,115810.0,0.00014118]
[1758139010896,3.97726665,115820.0,115810.0,0.00014118]
[1758139011252,3.69546665,115820.0,115810.0,0.00014118]
[1758139011453,3.97754665,115820.0,115810.0,0.00014118]
[1758139013388,4.0035024,115820.0,115810.0,0.00014118]
[1758139013866,1.44493737,115780.0,115770.0,0.07060573]
[1758139014057,1.90552704,115780.0,115770.0,0.07074688]
[1758139014270,1.90552704,115780.0,115770.0,0.07045688]
[1758139014684,1.90552704,115780.0,115770.0,0.00463115]
[1758139015333,1.90652704,115780.0,115770.0,0.00463115]
[1758139015555,1.49251235,115780.0,115770.0,0.00463115]
[1758139017250,1.49251235,115780.0,115770.0,0.17738747]
[1758139018084,1.49251235,115780.0,115770.0,0.00463115]
[1758139019598,1.90652704,115780.0,115770.0,0.00224115]
[1758139020065,1.90652704,115780.0,115770.0,0.00463115]
[1758139020292,1.49251235,115780.0,115770.0,0.00463115]
[1758139020775,1.49251235,115780.0,115770.0,0.17738747]
[1758139020991,1.28961905,115780.0,115770.0,0.17738747]
[1758139021198,1.46236045,115780.0,115770.0,0.17738747]
[1758139021631,1.46236045,115780.0,115770.0,0.00463115]
[1758139021868,1.46236045,115780.0,115770.0,0.17738747]
[1758139022323,1.46236045,115780.0,115770.0,0.00463115]
[1758139022543,1.46236045,115780.0,115770.0,0.17738747]
[1758139023182,1.87637514,115780.0,115770.0,0.00463115]
[1758139025489,1.46236045,115780.0,115770.0,0.00463115]
[1758139026570,1.46236045,115780.0,115770.0,0.17738747]
[1758139026747,1.46236045,115780.0,115770.0,0.00463115]
[1758139026966,1.46236045,115780.0,115770.0,0.17738747]
[1758139027827,0.63433107,115780.0,115770.0,0.17738747]
[1758139028016,1.46236045,115780.0,115770.0,0.00463115]
[1758139028217,1.46236045,115780.0,115770.0,0.17738747]
[1758139028879,1.46326045,115780.0,115770.0,0.17738747]
[1758139029370,0.46120967,115780.0,115770.0,0.17738747]
[1758139029626,1.28923905,115780.0,115770.0,0.17738747]
[1758139030047,1.46198045,115780.0,115770.0,0.00463115]
[1758139030254,1.28923905,115780.0,115770.0,0.17738747]
[1758139030717,1.46198045,115780.0,115770.0,0.17738747]
[1758139030952,1.46198045,115780.0,115770.0,0.00463115]
[1758139031606,1.46198045,115780.0,115770.0,0.17738747]
[1758139032654,1.46198045,115780.0,115770.0,0.00463115]
[1758139032897,0.63395107,115780.0,115770.0,0.00463115]
[1758139033127,1.46198045,115780.0,115770.0,0.00463115]
[1758139033980,1.46198045,115780.0,115770.0,0.17738747]
[1758139034188,0.63395107,115780.0,115770.0,0.00463115]
[1758139034411,1.46198045,115780.0,115770.0,0.00463115]
[1758139035060,1.46198045,115780.0,115770.0,0.17738747]
[1758139035312,1.46198045,115780.0,115770.0,0.00463115]
[1758139036423,1.46198045,115780.0,115770.0,0.00224115]
[1758139036665,1.87599514,115780.0,115770.0,0.00224115]
[1758139036874,1.46198045,115780.0,115770.0,0.00224115]
[1758139037557,2.25114704,115780.0,115770.0,0.00014115]
[1758139037783,3.54010817,115780.0,115770.0,0.00014115]
[1758139040824,2.30681089,115780.0,115770.0,0.00014115]
[1758139041371,2.33277126,115780.0,115770.0,0.00014115]
[1758139041591,3.57481533,115780.0,115770.0,0.00014115]
[1758139042227,2.33277126,115780.0,115770.0,0.00014115]
[1758139045605,2.33276475,115780.0,115770.0,0.00014115]
[1758139047308,2.3327656,115780.0,115770.0,0.00014115]
[1758139051063,2.3080956,115780.0,115770.0,0.00014115]
[1758139051328,1.86236054,115780.0,115770.0,0.00467115]
[1758139051798,1.86432054,115780.0,115770.0,0.00228115]
[1758139052013,2.30602996,115780.0,115770.0,0.00014115]
[1758139054046,1.89224925,115780.0,115770.0,0.00014115]
[1758139054263,1.06398613,115780.0,115770.0,0.00014115]
[1758139054527,1.89224949,115780.0,115770.0,0.00014115]
[1758139055837,1.87608503,115780.0,115770.0,0.00227115]
[1758139056060,1.87608503,115780.0,115770.0,0.00014115]
[1758139056061,1.89225071,115780.0,115770.0,0.00014115]
[1758139056643,1.89225111,115780.0,115770.0,0.00014115]
[1758139056839,1.89225111,115780.0,115770.0,0.00227115]
[1758139057467,1.86258111,115780.0,115770.0,0.00227115]
[1758139057873,1.03431775,115780.0,115770.0,0.00227115]
[1758139058122,1.86464111,115780.0,115770.0,0.00227115]
[1758139058693,1.88779111,115780.0,115770.0,0.00227115]
[1758139059027,1.89072111,115780.0,115770.0,0.00014115]
[1758139059417,1.89976041,115780.0,115770.0,0.00014115]
[1758139059634,1.89976436,115780.0,115770.0,0.00014115]
[1758139060785,1.89072506,115780.0,115770.0,0.00014115]
[1758139060998,1.0574717,115780.0,115770.0,0.00227115]
[1758139061221,1.88573506,115780.0,115770.0,0.00227115]
[1758139062004,1.44841338,115780.0,115770.0,0.00227115]
[1758139062185,1.16853338,115780.0,115770.0,0.00227115]
[1758139062342,1.47362338,115780.0,115770.0,0.00227115]
[1758139062555,1.44841338,115780.0,115770.0,0.00227115]
[1758139062966,1.15978659,115780.0,115770.0,0.00466115]
[1758139063165,1.43966659,115780.0,115770.0,0.00466115]
[1758139063366,1.02553491,115780.0,115770.0,0.00466115]
[1758139063572,1.43360428,115780.0,115770.0,0.00466115]
[1758139063885,1.43360428,115780.0,115770.0,0.00227115]
[1758139064135,1.43967099,115780.0,115770.0,0.00227115]
[1758139064449,1.43967225,115780.0,115770.0,0.00227115]
[1758139065931,1.15979225,115780.0,115770.0,0.00227115]
[1758139066101,1.02554057,115780.0,115770.0,0.00227115]
[1758139066278,1.43967225,115780.0,115770.0,0.00466115]
[1758139066691,1.43967225,115780.0,115770.0,0.17741747]
[1758139066692,1.26693085,115780.0,115770.0,0.17741747]
[1758139066894,0.93466135,115780.0,115770.0,0.17741747]
[1758139067138,1.38724275,115780.0,115770.0,0.17741747]
[1758139068257,1.38724275,115780.0,115770.0,0.00466115]
[1758139068463,1.38724275,115780.0,115770.0,0.17741747]
[1758139068868,1.21450135,115780.0,115770.0,0.17741747]
[1758139069494,1.38724275,115780.0,115770.0,0.17741747]
[1758139070362,1.38724275,115780.0,115770.0,0.00466115]
[1758139070568,1.38724275,115780.0,115770.0,0.17741747]
[1758139070813,1.38724275,115780.0,115770.0,0.00466115]
[1758139071018,1.38724275,115780.0,115770.0,0.00227115]
[1758139071019,1.38930275,115780.0,115770.0,0.00227115]
[1758139071674,1.40548577,115780.0,115770.0,0.00227115]
[1758139071882,1.40342577,115780.0,115770.0,0.00227115]
[1758139072090,1.43156577,115780.0,115770.0,0.00014115]
[1758139072308,1.84569745,115780.0,115770.0,0.00014115]
[1758139072515,1.87584935,115780.0,115770.0,0.00014115]
[1758139072941,1.88191831,115780.0,115770.0,0.00014115]
[1758139074946,1.90787898,115780.0,115770.0,0.00014115]
[1758139075581,1.90788156,115780.0,115770.0,0.00014115]
[1758139076765,1.49374988,115780.0,115770.0,0.00014115]
[1758139076981,1.46766988,115780.0,115770.0,0.00227115]
[1758139077437,1.46560988,115780.0,115770.0,0.00227115]
[1758139077707,1.43964921,115780.0,115770.0,0.00227115]
[1758139077882,1.43972921,115780.0,115770.0,0.00227115]
[1758139078888,1.43972982,115780.0,115770.0,0.00227115]
[1758139080509,1.43972982,115780.0,115770.0,0.00466115]
[1758139080955,1.43365979,115780.0,115770.0,0.00466115]
[1758139081160,1.43365979,115780.0,115770.0,0.00227115]
[1758139081578,1.44174022,115780.0,115770.0,0.00227115]
[1758139081783,1.46973022,115780.0,115770.0,0.00014115]
[1758139082549,1.88386222,115780.0,115770.0,0.00014115]
[1758139084253,0.74768886,115780.0,115770.0,0.00223115]
[1758139084477,1.44169054,115780.0,115770.0,0.00223115]
[1758139084702,1.88178257,115780.0,115770.0,0.00223115]
[1758139084960,1.90744257,115780.0,115770.0,0.00014115]
[1758139086024,1.90744815,115780.0,115770.0,0.00014115]
[1758139088134,1.90744854,115780.0,115770.0,0.00014115]
[1758139088986,1.90745012,115780.0,115770.0,0.00014115]
[1758139091544,1.88481012,115780.0,115770.0,0.00223115]
[1758139091706,1.90745012,115780.0,115770.0,0.00223115]
[1758139091908,1.90745012,115780.0,115770.0,0.00014115]
[1758139092949,0.56875346,115780.0,115770.0,0.00223115]
[1758139093190,1.38716275,115780.0,115770.0,0.17737747]
[1758139093613,0.93466135,115780.0,115770.0,0.17737747]
[1758139093828,1.04716275,115780.0,115770.0,0.17737747]
[1758139095288,1.04716275,115780.0,115770.0,0.00462115]
[1758139096395,0.87442135,115780.0,115770.0,0.17737747]
[1758139096615,0.63303107,115780.0,115770.0,0.17737747]
[1758139096816,1.04716275,115780.0,115770.0,0.17737747]
[1758139097021,1.04716275,115780.0,115770.0,0.00462115]
[1758139098349,1.04716275,115780.0,115770.0,0.17737747]
[1758139098350,0.18052967,115780.0,115770.0,0.17737747]
[1758139098587,0.08716967,115780.0,115770.0,0.22966782]
[1758139098756,0.36688967,115780.0,115770.0,0.21239219]
[1758139098958,0.36688967,115780.0,115770.0,0.22091888]
[1758139099717,0.36688967,115780.0,115770.0,0.18590416]
[1758139100142,0.78102135,115780.0,115770.0,0.18590416]
[1758139100356,0.78002135,115780.0,115770.0,0.18484214]
[1758139100834,0.36588967,115780.0,115770.0,0.18684214]
[1758139101940,0.08616967,115780.0,115770.0,0.18684214]
[1758139102371,0.08616967,115780.0,115770.0,0.26681181]
[1758139102824,0.08616967,115780.0,115770.0,0.68094349]
[1758139103514,0.08616967,115780.0,115770.0,0.18684214]
[1758139106203,0.50030135,115780.0,115770.0,0.18684214]
[1758139107137,0.08616967,115780.0,115770.0,0.18684214]
[1758139108451,0.08616967,115780.0,115770.0,0.13530031]
[1758139109047,0.08616967,115780.0,115770.0,0.56670762]
[1758139109271,0.08616967,115780.0,115770.0,0.62597504]
[1758139110305,0.0009,115780.0,115770.0,0.62597504]
[1758139110669,0.0009,115780.0,115770.0,0.65192556]
[1758139111692,0.0009,115780.0,115770.0,0.23779388]
[1758139111923,0.0009,115780.0,115770.0,0.57538251]
[1758139112324,0.0009,115780.0,115770.0,0.85502251]
[1758139113315,0.50030135,115780.0,115770.0,0.16125083]
[1758139113528,0.08616967,115780.0,115770.0,0.16125083]
[1758139113735,0.50030135,115780.0,115770.0,0.16125083]
[1758139113971,0.67304275,115780.0,115770.0,0.16125083]
[1758139114107,0.50030135,115780.0,115770.0,0.16125083]
[1758139114761,0.36576967,115780.0,115770.0,0.16125083]
[1758139115800,0.77966068,115780.0,115770.0,0.16125083]
[1758139117161,0.77966068,115780.0,115770.0,0.13530031]
[1758139117378,0.36576967,115780.0,115770.0,0.13530031]
[1758139117611,0.77966068,115780.0,115770.0,0.13530031]
[1758139118204,0.36576967,115780.0,115770.0,0.13530031]
[1758139118595,0.77966068,115780.0,115770.0,0.13530031]
[1758139120263,0.50006068,115780.0,115770.0,0.13530031]
[1758139120808,1.08669309,115780.0,115770.0,0.01052669]
[1758139120986,1.08669309,115780.0,115770.0,0.18328301]
[1758139121502,0.67280208,115780.0,115770.0,0.18328301]
[1758139121873,1.08669309,115780.0,115770.0,0.18328301]
[1758139122270,1.08867309,115780.0,115770.0,0.17475632]
[1758139122472,1.09174309,115780.0,115770.0,0.002]
[1758139122676,1.11487309,115780.0,115770.0,0.002]
[1758139123255,0.28709107,115780.0,115770.0,0.002]
[1758139123459,1.11487309,115780.0,115770.0,0.17275632]
[1758139123627,1.08669309,115780.0,115770.0,0.17275632]
[1758139124035,1.08867309,115780.0,115770.0,0.17275632]
[1758139124247,1.08669309,115780.0,115770.0,0.17275632]
[1758139124681,0.25891107,115780.0,115770.0,0.17275632]
[1758139124913,1.08669309,115780.0,115770.0,0.17275632]
[1758139125125,0.08616967,115780.0,115770.0,0.17275632]
[1758139125332,0.50006068,115780.0,115770.0,0.17275632]
[1758139125537,0.67280208,115780.0,115770.0,0.17275632]
[1758139126332,1.08669309,115780.0,115770.0,0.17275632]
[1758139126532,0.25891107,115780.0,115770.0,0.17275632]
[1758139126751,1.08669309,115780.0,115770.0,0.17275632]
[1758139129415,0.91395169,115780.0,115770.0,0.17275632]
[1758139129921,1.08669309,115780.0,115770.0,0.17275632]
[1758139130338,0.91395169,115780.0,115770.0,0.17275632]
[1758139130683,1.09174309,115780.0,115760.0,0.17276973]
[1758139130892,0.671917,115770.0,115760.0,0.17276973]
[1758139131121,0.49916068,115770.0,115760.0,0.17276973]
[1758139131325,0.08526967,115770.0,115760.0,0.17276973]
[1758139131522,0.49916068,115770.0,115760.0,0.17276973]
[1758139132575,0.49916068,115770.0,115760.0,0.17376973]
[1758139133542,0.676967,115770.0,115760.0,0.17376973]
[1758139133808,0.700097,115770.0,115760.0,0.17376973]
[1758139134272,0.676967,115770.0,115760.0,0.17376973]
[1758139135004,0.50421068,115770.0,115760.0,0.17376973]
[1758139135669,0.49916068,115770.0,115760.0,0.17376973]
[1758139136273,0.671917,115770.0,115760.0,0.17376973]
[1758139136727,0.50421068,115770.0,115760.0,0.17376973]
[1758139136859,0.50114068,115770.0,115760.0,0.17376973]
[1758139137083,0.671917,115770.0,115760.0,0.17376973]
[1758139137297,0.673897,115770.0,115760.0,0.17376973]
[1758139137501,0.700637,115770.0,115760.0,0.17376973]
[1758139137731,0.677077,115770.0,115760.0,0.17376973]
[1758139137938,0.700637,115770.0,115760.0,0.17376973]
[1758139138354,0.673907,115770.0,115760.0,0.17376973]
[1758139138790,0.671917,115770.0,115760.0,0.17376973]
[1758139139405,0.49916068,115770.0,115760.0,0.17376973]
[1758139139615,0.49916068,115770.0,115760.0,0.20108823]
[1758139139822,0.49916068,115770.0,115760.0,0.17376973]
[1758139140289,0.08526967,115770.0,115760.0,0.17376973]
[1758139140537,0.68860245,115800.0,115790.0,0.17272648]
[1758139140750,1.6883041,115800.0,115790.0,0.17272648]
[1758139141157,1.6902941,115800.0,115790.0,0.17272648]
[1758139141604,1.7170341,115800.0,115780.0,0.1727414]
[1758139141819,0.49916068,115790.0,115780.0,0.1727414]
[1758139143208,0.50122068,115790.0,115780.0,0.1727414]
[1758139144285,0.67689716,115790.0,115780.0,0.1727414]
[1758139144724,0.69951716,115790.0,115780.0,0.1727414]
[1758139144893,0.52679068,115790.0,115780.0,0.1727414]
[1758139145252,0.50122068,115790.0,115780.0,0.1727414]
[1758139145457,0.49916068,115790.0,115780.0,0.1727414]
[1758139146418,1.09078817,115790.0,115770.0,0.18136947]
[1758139146625,1.28279342,115780.0,115770.0,0.18136947]
[1758139146869,0.95623208,115780.0,115770.0,0.18136947]
[1758139147076,1.37012309,115780.0,115770.0,0.17275632]
[1758139147308,1.39274309,115780.0,115760.0,0.19872228]
[1758139147518,0.50211068,115770.0,115760.0,0.19872228]
[1758139147724,0.49916068,115770.0,115760.0,0.17276973]
[1758139147935,0.676927,115770.0,115760.0,0.17276973]
[1758139148182,0.50417068,115770.0,115760.0,0.17276973]
[1758139148400,0.08526967,115770.0,115760.0,0.17276973]
[1758139148617,0.49916068,115770.0,115760.0,0.17276973]
[1758139148836,0.50122068,115770.0,115760.0,0.17276973]
[1758139149058,0.08732967,115770.0,115760.0,0.17276973]
[1758139149279,0.676927,115770.0,115760.0,0.17276973]
[1758139149459,0.699547,115770.0,115760.0,0.17277125]
[1758139149945,0.699547,115770.0,115750.0,0.19053159]
[1758139150164,0.69317101,115760.0,115750.0,0.19053159]
[1758139150388,0.36454967,115760.0,115750.0,0.19053159]
[1758139150879,0.77844068,115760.0,115750.0,0.19053159]
[1758139152641,0.77844068,115760.0,115750.0,0.19253159]
[1758139154867,0.36454967,115760.0,115750.0,0.19253159]
[1758139155287,0.36454967,115760.0,115750.0,0.6064226]
[1758139156121,0.36544967,115760.0,115750.0,0.6064226]
[1758139156332,0.36544967,115760.0,115750.0,0.19253159]
[1758139156951,0.36544967,115760.0,115750.0,0.6064226]
[1758139157154,0.36540967,115760.0,115750.0,0.63237976]
[1758139157580,0.36540967,115760.0,115750.0,0.7082758]
[1758139157789,0.28014,115760.0,115750.0,0.7082758]
[1758139158202,0.28014,115760.0,115750.0,0.63237976]
[1758139158429,0.0009,115760.0,115750.0,0.63237976]
[1758139158636,0.0009,115760.0,115750.0,0.91161976]
[1758139158850,0.0009,115760.0,115750.0,1.32551077]
[1758139159804,0.0009,115760.0,115750.0,1.66551077]
[1758139160003,0.0009,115760.0,115750.0,1.75078044]
[1758139161464,0.0009,115760.0,115750.0,1.84414044]
[1758139162267,1e-08,115760.0,115750.0,1.92941011]
[1758139163305,1e-08,115760.0,115750.0,1.92741011]
[1758139163678,1e-08,115760.0,115750.0,1.98241011]
[1758139166015,1e-08,115760.0,115750.0,1.43316943]
[1758139166226,1e-08,115760.0,115750.0,0.84064875]
[1758139166437,1e-08,115760.0,115750.0,1.25453976]
[1758139167060,1e-08,115760.0,115750.0,0.84064875]
[1758139167264,1e-08,115760.0,115750.0,0.91449976]
[1758139167468,1e-08,115760.0,115750.0,0.99976943]
[1758139168082,1e-08,115760.0,115750.0,0.58587842]
[1758139168317,1e-08,115760.0,115750.0,0.99976943]
[1758139170679,1e-08,115760.0,115750.0,0.99972943]
[1758139171511,1e-08,115760.0,115750.0,0.58583842]
[1758139171720,1e-08,115760.0,115750.0,0.99972943]
[1758139172112,1e-08,115760.0,115750.0,0.22148875]
[1758139172537,1e-08,115760.0,115750.0,0.63037976]
[1758139172876,0.50118069,115760.0,115750.0,0.21948875]
[1758139173080,0.08728968,115760.0,115750.0,0.19053159]
[1758139173284,0.09047968,115760.0,115750.0,0.19353159]
[1758139173526,0.52842069,115760.0,115750.0,0.19353159]
[1758139173744,1.11508295,115760.0,115750.0,0.19353159]
[1758139173951,0.52842069,115760.0,115750.0,0.19353159]
[1758139174365,0.80746069,115760.0,115750.0,0.21648875]
[1758139174570,0.39356968,115760.0,115750.0,0.19153159]
[1758139175286,0.36430968,115760.0,115750.0,0.27196945]
[1758139175499,0.08526968,115760.0,115750.0,0.68586046]
[1758139175701,0.08526968,115760.0,115750.0,0.6054226]
[1758139175927,0.08526968,115760.0,115750.0,0.19153159]
[1758139176141,0.50118069,115760.0,115750.0,0.19153159]
[1758139176352,0.52842069,115760.0,115750.0,0.19153159]
[1758139176981,0.52862069,115760.0,115750.0,0.19153159]
[1758139177179,0.11472968,115760.0,115750.0,0.19053159]
[1758139177393,0.70139194,115760.0,115750.0,0.19053159]
[1758139177595,0.70139194,115760.0,115750.0,0.18182497]
[1758139177796,0.70159448,115760.0,115750.0,0.18182497]
[1758139178281,0.28750093,115760.0,115750.0,0.18182497]
[1758139178575,0.70159448,115760.0,115750.0,0.18182497]
[1758139179711,0.70159448,115760.0,115750.0,0.0014]
[1758139179914,0.70159448,115760.0,115750.0,0.0004]
[1758139180210,0.79495448,115760.0,115750.0,0.17318617]
[1758139180433,0.79495448,115760.0,115750.0,0.0004]
[1758139180602,0.79495448,115760.0,115750.0,0.17318617]
[1758139180800,0.38086093,115760.0,115750.0,0.0004]
[1758139181034,0.79495448,115760.0,115750.0,0.0004]
[1758139182412,0.79595448,115760.0,115750.0,0.0004]
[1758139182890,0.79495448,115760.0,115750.0,0.0004]
[1758139183094,0.79595448,115760.0,115750.0,0.0004]
[1758139184458,0.79645448,115760.0,115750.0,0.17318617]
[1758139184677,0.77240448,115760.0,115750.0,0.17318617]
[1758139184888,1.07545448,115760.0,115750.0,0.17318617]
[1758139185297,1.07545448,115760.0,115750.0,0.0004]
[1758139185719,1.05140448,115760.0,115750.0,0.0004]
[1758139185948,1.07545448,115760.0,115750.0,0.0004]
[1758139186292,0.18032968,115760.0,115750.0,0.17318617]
[1758139186497,0.63412093,115760.0,115750.0,0.0004]
[1758139186731,0.63210093,115760.0,115750.0,0.17318617]
[1758139186949,0.36596968,115760.0,115750.0,0.17318617]
[1758139187585,0.36596968,115760.0,115750.0,0.19914441]
[1758139187796,0.08696968,115760.0,115750.0,0.61323796]
[1758139187941,0.36596968,115760.0,115750.0,0.69186168]
[1758139188188,0.36496968,115760.0,115750.0,0.69186168]
[1758139188383,0.53770093,115760.0,115750.0,0.02635824]
[1758139188624,0.36492968,115760.0,115750.0,0.19914441]
[1758139188829,0.53770093,115760.0,115750.0,0.19914441]
[1758139189081,0.95700448,115760.0,115750.0,0.02735824]
[1758139189320,0.98105448,115760.0,115750.0,0.0014]
[1758139189903,0.98105448,115760.0,115750.0,0.0004]
[1758139190108,0.70209448,115760.0,115750.0,0.0004]
[1758139190427,0.98105448,115760.0,115750.0,0.0004]
[1758139191652,0.98205448,115760.0,115750.0,0.0004]
[1758139191859,0.98105448,115760.0,115750.0,0.0004]
[1758139192380,0.95800448,115760.0,115750.0,0.0004]
[1758139192590,0.98205448,115760.0,115750.0,0.0004]
[1758139195185,0.28900093,115760.0,115750.0,0.17318617]
[1758139195401,0.08696968,115760.0,115750.0,0.58727972]
[1758139195604,0.36588968,115760.0,115750.0,0.17318617]
[1758139196469,0.08596968,115760.0,115750.0,0.58727972]
[1758139196668,0.34180968,115760.0,115750.0,0.58727972]
[1758139196911,0.34180968,115760.0,115750.0,0.66430778]
[1758139197324,0.00070001,115760.0,115750.0,0.66430778]
[1758139197731,0.00070001,115760.0,115750.0,0.27616791]
[1758139197933,0.00070001,115760.0,115750.0,0.27516791]
[1758139198406,0.00070001,115760.0,115750.0,0.69226146]
[1758139198603,0.00070001,115760.0,115750.0,0.6162334]
[1758139199975,0.00070001,115760.0,115750.0,0.20213985]
[1758139200206,0.41479356,115760.0,115750.0,0.20213985]
[1758139200428,0.00070001,115760.0,115750.0,0.17618617]
[1758139201045,0.08596968,115760.0,115750.0,0.17618617]
[1758139201284,0.50524323,115760.0,115750.0,0.0034]
[1758139201495,0.52856323,115760.0,115750.0,0.0034]
[1758139201711,0.50524323,115760.0,115750.0,0.17618617]
[1758139201923,0.70133448,115760.0,115750.0,0.0034]
[1758139202155,0.70313448,115760.0,115750.0,0.17318617]
[1758139202362,0.70313448,115760.0,115750.0,0.17418617]
[1758139202579,0.70313448,115760.0,115750.0,0.17318617]
[1758139202790,0.70313448,115760.0,115750.0,0.0004]
[1758139203005,0.65919283,115760.0,115750.0,0.0004]
[1758139203435,1.07328638,115760.0,115750.0,0.0004]
[1758139203662,1.04313448,115760.0,115750.0,0.0004]
[1758139203939,0.62904093,115760.0,115750.0,0.0004]
[1758139204188,1.30043669,115760.0,115750.0,0.0004]
[1758139205038,0.63104093,115760.0,115750.0,0.0004]
[1758139205279,0.88652093,115760.0,115750.0,0.0004]
[1758139205506,0.91014093,115760.0,115750.0,0.0004]
[1758139206173,0.63134093,115760.0,115750.0,0.0004]
[1758139206431,0.63134093,115760.0,115750.0,0.17318617]
[1758139206661,0.36856968,115760.0,115750.0,0.20780473]
[1758139206875,0.26254093,115760.0,115750.0,0.17318617]
[1758139207092,0.53934093,115760.0,115750.0,0.17318617]
[1758139207305,0.36871968,115760.0,115750.0,0.17318617]
[1758139207727,0.54462093,115760.0,115750.0,0.0004]
[1758139207950,0.56824093,115760.0,115750.0,0.19046478]
[1758139208159,0.56824093,115760.0,115750.0,0.17318617]
[1758139208797,0.56824093,115760.0,115750.0,0.0004]
[1758139209006,0.56824093,115760.0,115750.0,0.19046478]
[1758139209208,1.23963669,115760.0,115750.0,0.0004]
[1758139209424,1.23963669,115760.0,115750.0,0.17318617]
[1758139209835,0.56824093,115760.0,115750.0,0.19046478]
[1758139210351,0.56824093,115760.0,115750.0,0.17318617]
[1758139212486,0.39233968,115760.0,115750.0,0.17318617]
[1758139212691,0.36656968,115760.0,115750.0,0.17318617]
[1758139213042,0.08776968,115760.0,115750.0,0.17318617]
[1758139213453,0.36652968,115760.0,115750.0,0.17318617]
[1758139215136,0.08776968,115760.0,115750.0,0.84458193]
[1758139215356,0.36652968,115760.0,115750.0,0.17318617]
[1758139215773,0.08776968,115760.0,115750.0,0.17318617]
[1758139215998,0.36652968,115760.0,115750.0,0.17318617]
[1758139216153,0.08776968,115760.0,115750.0,0.17418617]
[1758139216378,0.36652968,115760.0,115750.0,0.25945584]
[1758139217224,0.28126001,115760.0,115750.0,0.25945584]
[1758139218294,0.00250001,115760.0,115750.0,0.17418617]
[1758139218516,0.28122001,115760.0,115750.0,0.17418617]
[1758139219624,0.00250001,115760.0,115750.0,0.17418617]
[1758139220492,0.00250001,115760.0,115750.0,0.84558193]
[1758139220910,0.00250001,115760.0,115750.0,0.87153628]
[1758139221126,0.00250001,115760.0,115750.0,0.28541019]
[1758139222234,0.00250001,115760.0,115750.0,0.95680595]